bitfinex/quotes_SOLUSD_20241022
["timestamp","ask_amount","ask_price","bid_price","bid_amount"]
[1729632049849,11.51565738,167.67,167.64,21.88814734]
[1729632050050,11.51565738,167.66,167.64,21.88814734]
[1729632050254,4.42909899,167.65,167.64,21.88814734]
[1729632050442,11.5172981,167.67,167.64,21.88814734]
[1729632050646,20.0,167.68,167.63,21.88814734]
[1729632050647,4.42972985,167.66,167.63,21.88814734]
[1729632050843,4.42972985,167.65,167.63,21.88814734]
[1729632051056,20.0,167.68,167.63,21.88814734]
[1729632051260,11.51773616,167.67,167.63,21.88814734]
[1729632051444,4.42989852,167.66,167.63,21.88814734]
[1729632051647,4.42989852,167.65,167.63,21.88814734]
[1729632051837,20.0,167.68,167.63,21.88814734]
[1729632052034,11.5164551,167.67,167.63,21.88814734]
[1729632052260,4.42940581,167.66,167.63,21.88814734]
[1729632052451,4.42940581,167.65,167.63,21.88814734]
[1729632052660,5.9633,167.69,167.63,21.88814734]
[1729632052853,11.51532664,167.68,167.63,21.88814734]
[1729632053052,11.51532664,167.67,167.63,21.88814734]
[1729632053356,4.42897178,167.66,167.63,21.88814734]
[1729632053660,5.9633,167.69,167.63,21.88814734]
[1729632053852,11.51429719,167.68,167.63,21.88814734]
[1729632054034,11.51429719,167.67,167.63,21.88814734]
[1729632054236,4.42857584,167.66,167.63,21.88814734]
[1729632054443,5.9633,167.69,167.63,21.88814734]
[1729632054636,11.51320326,167.68,167.63,21.88814734]
[1729632054854,11.51320326,167.67,167.63,21.88814734]
[1729632055055,4.4281551,167.66,167.63,21.88814734]
[1729632055359,5.9633,167.69,167.63,21.88814734]
[1729632055552,11.51237618,167.68,167.63,21.88814734]
[1729632055760,11.51237618,167.67,167.63,21.88814734]
[1729632055936,4.42783699,167.66,167.63,21.88814734]
[1729632056137,5.9633,167.69,167.63,21.88814734]
[1729632056443,11.51137086,167.68,167.63,21.88814734]
[1729632056644,11.51137086,167.67,167.63,21.88814734]
[1729632056845,4.42745033,167.66,167.63,21.88814734]
[1729632057056,0.1,167.73,167.64,21.88814734]
[1729632057360,25.9626,167.71,167.65,21.88814734]
[1729632057657,11.51136927,167.7,167.65,21.88814734]
[1729632057960,11.51136927,167.69,167.65,21.88814734]
[1729632058166,11.51136927,167.68,167.65,21.88814734]
[1729632058348,4.42744972,167.67,167.65,21.88814734]
[1729632058546,25.9626,167.71,167.65,21.88814734]
[1729632058759,11.50973432,167.7,167.65,21.88814734]
[1729632059050,25.9626,167.71,167.65,21.88814734]
[1729632059269,4.42679631,167.69,167.66,21.88814734]
[1729632059637,4.42679631,167.68,167.66,21.88814734]
[1729632059837,20.0,167.72,167.66,21.88814734]
[1729632060056,11.50854133,167.71,167.66,21.88814734]
[1729632060263,11.50854133,167.7,167.66,21.88814734]
[1729632060447,11.50854133,167.69,167.66,21.88814734]
[1729632060641,4.42636205,167.68,167.66,21.88814734]
[1729632060858,20.0,167.72,167.66,21.88814734]
[1729632061162,11.50855877,167.71,167.66,21.88814734]
[1729632061359,11.50855877,167.7,167.66,21.88814734]
[1729632061535,4.42636876,167.69,167.66,21.88814734]
[1729632061869,25.962,167.73,167.66,21.88814734]
[1729632062045,20.0,167.71,167.66,21.88814734]
[1729632062246,11.50714645,167.7,167.66,21.88814734]
[1729632062659,4.42582556,167.7,167.66,21.88814734]
[1729632062865,4.42582556,167.69,167.66,21.88814734]
[1729632063068,20.0,167.72,167.66,21.88814734]
[1729632063255,11.50525546,167.71,167.66,21.88814734]
[1729632063561,20.0,167.72,167.66,21.88814734]
[1729632063562,11.50525546,167.7,167.66,21.88814734]
[1729632063766,4.42509825,167.69,167.66,21.88814734]
[1729632064069,20.0,167.72,167.66,21.88814734]
[1729632064255,11.50366446,167.71,167.66,21.88814734]
[1729632064447,4.42448633,167.7,167.66,21.88814734]
[1729632064649,4.42448633,167.69,167.66,21.88814734]
[1729632064850,20.0,167.72,167.66,21.88814734]
[1729632065054,11.50204503,167.71,167.66,21.88814734]
[1729632065370,4.42386347,167.7,167.66,21.88814734]
[1729632065544,4.42386347,167.69,167.66,21.88814734]
[1729632065744,20.0,167.72,167.66,21.88814734]
[1729632066066,11.50101954,167.71,167.66,21.88814734]
[1729632066256,4.42346905,167.71,167.66,21.88814734]
[1729632066460,4.42346905,167.7,167.66,21.88814734]
[1729632066767,4.42346905,167.69,167.66,21.88814734]
[1729632066968,20.0,167.72,167.66,21.88814734]
[1729632067159,11.49966717,167.71,167.66,21.88814734]
[1729632067339,4.42294891,167.7,167.61,15.0196]
[1729632067539,4.42294891,167.69,167.63,21.88814734]
[1729632067861,5.9633,167.7,167.63,21.88814734]
[1729632068060,4.42178549,167.69,167.63,21.88814734]
[1729632068244,5.9633,167.7,167.63,21.88814734]
[1729632068443,4.42200896,167.69,167.63,21.88814734]
[1729632068643,5.9633,167.7,167.63,21.88814734]
[1729632068844,4.42263581,167.69,167.63,21.88814734]
[1729632069048,5.9633,167.7,167.64,21.88814734]
[1729632069049,4.42251614,167.68,167.64,21.88814734]
[1729632069265,5.9633,167.7,167.64,21.88814734]
[1729632069443,4.42267842,167.69,167.64,21.88814734]
[1729632069643,4.42267842,167.68,167.64,21.88814734]
[1729632069843,5.9633,167.7,167.64,21.88814734]
[1729632070057,4.42403052,167.69,167.64,21.88814734]
[1729632070244,4.42403052,167.68,167.64,21.88814734]
[1729632070450,5.9633,167.7,167.64,21.88814734]
[1729632070651,4.42476133,167.69,167.64,21.88814734]
[1729632070966,4.42476133,167.68,167.64,21.88814734]
[1729632071168,5.9633,167.7,167.64,21.88814734]
[1729632071467,4.42467127,167.69,167.64,21.88814734]
[1729632071667,4.42467127,167.68,167.64,21.88814734]
[1729632071873,5.9627,167.71,167.64,21.88814734]
[1729632072054,11.50341786,167.7,167.64,21.88814734]
[1729632072253,4.42439148,167.69,167.64,21.88814734]
[1729632072557,5.9627,167.71,167.64,21.88814734]
[1729632072756,11.503499,167.7,167.64,21.88814734]
[1729632073063,4.42442269,167.69,167.64,21.88814734]
[1729632073254,5.9627,167.71,167.64,21.88814734]
[1729632073448,11.50351473,167.7,167.64,21.88814734]
[1729632076267,11.50351473,167.7,167.68,21.88814734]
[1729632076474,6.21688211,167.75,167.69,21.88814734]
[1729632076675,11.50612613,167.74,167.69,21.88814734]
[1729632076977,11.50612613,167.73,167.69,21.88814734]
[1729632077170,4.42543313,167.72,167.69,21.88814734]
[1729632077353,5.9613,167.75,167.68,21.88814734]
[1729632077551,11.50491512,167.74,167.68,21.88814734]
[1729632077754,11.50491512,167.73,167.67,21.88814734]
[1729632077969,4.42496735,167.72,167.67,21.88814734]
[1729632078163,4.42496735,167.71,167.67,21.88814734]
[1729632078369,5.9617,167.74,167.67,21.88814734]
[1729632078573,17.46629847,167.73,167.66,21.88814734]
[1729632078867,11.50419847,167.72,167.66,21.88814734]
[1729632079072,4.42469172,167.71,167.66,21.88814734]
[1729632079371,5.9621,167.73,167.66,21.88814734]
[1729632079576,11.50402838,167.72,167.66,21.88814734]
[1729632080363,5.9628,167.71,167.65,21.88814734]
[1729632080552,4.4246263,167.7,167.65,21.88814734]
[1729632080767,5.9628,167.71,167.65,21.88814734]
[1729632080966,4.4248626,167.7,167.65,21.88814734]
[1729632081152,4.42559131,167.69,167.65,21.88814734]
[1729632081351,5.9628,167.71,167.65,21.88814734]
[1729632081550,4.42558999,167.7,167.65,21.88814734]
[1729632081753,4.42558824,167.69,167.65,21.88814734]
[1729632081957,5.9628,167.71,167.65,21.88814734]
[1729632082160,4.42569924,167.7,167.65,21.88814734]
[1729632082376,4.42569924,167.69,167.65,21.88814734]
[1729632082674,5.9628,167.71,167.65,21.88814734]
[1729632082875,4.42691863,167.7,167.65,21.88814734]
[1729632083076,4.42691863,167.69,167.65,21.88814734]
[1729632083386,5.9628,167.71,167.65,21.88814734]
[1729632083669,4.42850778,167.7,167.64,21.88814734]
[1729632083875,4.42850778,167.69,167.64,21.88814734]
[1729632084068,5.9628,167.71,167.64,21.88814734]
[1729632084270,11.51592943,167.7,167.64,21.88814734]
[1729632089174,11.51592943,167.69,167.64,21.88814734]
[1729632089382,4.42869205,167.68,167.64,21.88814734]
[1729632089559,4.42869205,167.67,167.64,21.88814734]
[1729632089760,5.9628,167.71,167.64,21.88814734]
[1729632089978,11.5211988,167.7,167.64,21.88814734]
[1729632090281,11.52262394,167.69,167.64,21.88814734]
[1729632090577,5.9628,167.71,167.64,21.88814734]
[1729632090578,4.43177844,167.68,167.64,21.88814734]
[1729632090777,4.43177844,167.67,167.64,21.88814734]
[1729632090979,5.9628,167.71,167.64,21.88814734]
[1729632091172,11.52294432,167.7,167.64,21.88814734]
[1729632091372,11.52294432,167.69,167.61,21.4571]
[1729632091577,11.52294432,167.68,167.64,21.88814734]
[1729632091755,4.43190166,167.67,167.63,21.88814734]
[1729632091960,5.963,167.7,167.63,21.88814734]
[1729632092274,11.52484892,167.69,167.63,21.88814734]
[1729632092465,11.52484892,167.68,167.63,21.88814734]
[1729632092668,4.4326342,167.67,167.63,21.88814734]
[1729632092973,4.4326342,167.66,167.63,21.88814734]
[1729632093283,5.963,167.7,167.63,21.88814734]
[1729632093471,11.52684217,167.69,167.63,21.88814734]
[1729632093658,11.52684217,167.68,167.63,21.88814734]
[1729632093858,4.43340083,167.67,167.63,21.88814734]
[1729632094181,4.43340083,167.66,167.63,21.88814734]
[1729632094383,5.963,167.7,167.63,21.88814734]
[1729632094681,11.52775452,167.69,167.63,21.88814734]
[1729632094883,11.52775452,167.68,167.63,21.88814734]
[1729632095070,4.43375174,167.67,167.63,21.88814734]
[1729632095266,4.43375174,167.66,167.63,21.88814734]
[1729632095477,5.963,167.7,167.63,21.88814734]
[1729632095675,11.52688567,167.69,167.63,21.88814734]
[1729632095978,11.52688567,167.68,167.63,21.88814734]
[1729632096167,5.963,167.7,167.63,21.88814734]
[1729632096168,4.43341756,167.67,167.63,21.88814734]
[1729632096360,4.43341756,167.66,167.63,21.88814734]
[1729632096556,5.963,167.7,167.63,21.88814734]
[1729632096763,11.52763893,167.69,167.63,21.88814734]
[1729632097060,11.52763893,167.68,167.63,21.88814734]
[1729632097260,4.43370728,167.67,167.63,21.88814734]
[1729632097466,4.43370728,167.66,167.63,21.88814734]
[1729632097784,20.0,167.72,167.65,21.88814734]
[1729632098083,11.52949311,167.71,167.66,21.88814734]
[1729632098384,11.529406,167.7,167.66,21.88814734]
[1729632098569,11.529406,167.69,167.66,21.88814734]
[1729632098768,4.43438692,167.68,167.65,21.88814734]
[1729632098968,4.43438692,167.67,167.65,21.88814734]
[1729632099157,25.9623,167.72,167.65,21.88814734]
[1729632099363,11.53160503,167.71,167.65,21.88814734]
[1729632099561,11.53160503,167.7,167.65,21.88814734]
[1729632099775,11.53160503,167.69,167.65,21.88814734]
[1729632099976,11.53160503,167.68,167.65,21.88814734]
[1729632100178,4.4352327,167.67,167.65,21.88814734]
[1729632100378,25.9623,167.72,167.65,21.88814734]
[1729632100578,11.53951643,167.71,167.65,21.88814734]
[1729632100789,11.53951643,167.7,167.65,21.88814734]
[1729632101086,11.53951643,167.69,167.65,21.88814734]
[1729632101274,11.53951643,167.68,167.65,21.88814734]
[1729632101585,4.43827555,167.67,167.62,23.776884]
[1729632101791,5.9613,167.75,167.66,21.88814734]
[1729632101973,11.53956299,167.74,167.68,21.88814734]
[1729632102171,5.9613,167.75,167.68,21.88814734]
[1729632102371,11.54054424,167.74,167.68,21.88814734]
[1729632102687,11.54054424,167.73,167.68,21.88814734]
[1729632102864,11.54054424,167.72,167.68,21.88814734]
[1729632103068,11.54054424,167.71,167.68,21.88814734]
[1729632103281,11.54054424,167.7,167.68,21.88814734]
[1729632103489,5.9613,167.75,167.68,21.88814734]
[1729632103490,4.43867086,167.69,167.68,21.88814734]
[1729632104385,11.54108876,167.71,167.68,21.88814734]
[1729632104698,11.54109128,167.7,167.68,21.88814734]
[1729632104900,4.43867086,167.69,167.68,21.88814734]
[1729632105074,4.43867086,167.73,167.68,21.88814734]
[1729632105374,11.5411165,167.72,167.68,21.88814734]
[1729632105566,11.5411165,167.71,167.68,21.88814734]
[1729632105768,11.5411165,167.7,167.68,21.88814734]
[1729632105970,4.43867086,167.69,167.68,21.88814734]
[1729632106274,4.43896626,167.69,167.68,21.88814734]
[1729632109972,4.43748819,167.69,167.62,23.776884]
[1729632110174,4.43748819,167.69,167.64,21.88814734]
[1729632110479,4.43748819,167.68,167.64,21.88814734]
[1729632110675,5.9623,167.72,167.64,21.88814734]
[1729632110880,11.53631284,167.71,167.64,21.88814734]
[1729632111081,11.53631284,167.7,167.64,21.88814734]
[1729632111292,11.53631284,167.69,167.64,21.88814734]
[1729632111494,4.4370434,167.68,167.64,21.88814734]
[1729632111799,4.43973967,167.67,167.64,21.88814734]
[1729632112092,5.9623,167.72,167.64,21.88814734]
[1729632112390,11.54349992,167.71,167.64,21.88814734]
[1729632112600,11.54350205,167.7,167.64,21.88814734]
[1729632112776,11.54350205,167.69,167.64,21.88814734]
[1729632112977,4.43980848,167.68,167.64,21.88814734]
[1729632113369,4.43980848,167.67,167.64,21.88814734]
[1729632113573,5.9623,167.72,167.64,21.88814734]
[1729632113775,11.54361794,167.71,167.65,21.88814734]
[1729632113983,11.54353458,167.7,167.65,21.88814734]
[1729632114182,11.54353458,167.69,167.65,21.88814734]
[1729632114393,4.43982099,167.68,167.65,21.88814734]
[1729632114594,4.43982099,167.67,167.65,21.88814734]
[1729632114776,5.962,167.73,167.65,21.88814734]
[1729632114978,11.54108436,167.72,167.65,21.88814734]
[1729632115287,11.54108436,167.71,167.65,21.88814734]
[1729632115590,11.54108436,167.7,167.65,21.88814734]
[1729632115790,11.54108436,167.69,167.65,21.88814734]
[1729632115998,4.4388786,167.68,167.65,21.88814734]
[1729632116197,4.4388786,167.67,167.65,21.88814734]
[1729632116496,5.962,167.73,167.65,21.88814734]
[1729632116696,11.53863061,167.72,167.65,21.88814734]
[1729632116888,5.962,167.73,167.65,21.88814734]
[1729632116889,11.53863061,167.71,167.65,21.88814734]
[1729632117089,11.53863061,167.7,167.65,21.88814734]
[1729632117289,11.53863061,167.69,167.65,21.88814734]
[1729632117590,4.43793485,167.68,167.65,21.88814734]
[1729632117895,4.43793485,167.67,167.65,21.88814734]
[1729632118099,5.962,167.73,167.65,21.88814734]
[1729632118404,11.53964266,167.72,167.65,21.88814734]
[1729632118584,11.53964266,167.71,167.65,21.88814734]
[1729632118791,11.53964266,167.7,167.65,21.88814734]
[1729632118983,11.53964266,167.69,167.65,21.88814734]
[1729632119184,4.4383241,167.68,167.65,21.88814734]
[1729632119384,4.4383241,167.67,167.65,21.88814734]
[1729632119583,20.0,167.72,167.65,21.88814734]
[1729632119793,11.54006552,167.71,167.65,21.88814734]
[1729632120001,11.54006552,167.7,167.65,21.88814734]
[1729632120198,11.54006552,167.69,167.65,21.88814734]
[1729632120382,4.43848674,167.68,167.65,21.88814734]
[1729632120699,20.0,167.72,167.65,21.88814734]
[1729632121009,11.5400452,167.71,167.64,21.88814734]
[1729632121180,7.1015137,167.7,167.64,21.88814734]
[1729632121388,4.4385315,167.69,167.64,21.88814734]
[1729632121581,20.0,167.72,167.64,21.88814734]
[1729632121582,4.4385315,167.68,167.64,21.88814734]
[1729632121782,4.4385315,167.67,167.64,21.88814734]
[1729632121991,20.0,167.72,167.64,21.88814734]
[1729632122205,11.53992104,167.71,167.64,21.88814734]
[1729632122400,11.53992104,167.7,167.64,21.88814734]
[1729632122587,11.53992104,167.69,167.64,21.88814734]
[1729632122904,4.43843117,167.68,167.64,21.88814734]
[1729632123205,4.43843117,167.67,167.64,21.88814734]
[1729632123411,20.0,167.72,167.64,21.88814734]
[1729632123708,11.53430882,167.71,167.64,21.88814734]
[1729632124012,11.53430882,167.7,167.64,21.88814734]
[1729632124182,11.53430882,167.69,167.64,21.88814734]
[1729632124379,4.43627262,167.68,167.62,23.776884]
[1729632124585,4.43627262,167.67,167.63,21.88814734]
[1729632124781,4.43627262,167.66,167.64,21.88814734]
[1729632124995,15.6335,167.71,167.64,21.88814734]
[1729632125191,11.53604037,167.7,167.64,21.88814734]
[1729632125489,11.53604037,167.69,167.64,21.88814734]
[1729632125688,11.53604037,167.68,167.64,21.88814734]
[1729632125893,4.4369386,167.67,167.64,21.88814734]
[1729632126093,15.6335,167.71,167.64,21.88814734]
[1729632126312,11.53631848,167.7,167.64,21.88814734]
[1729632126502,11.53631848,167.69,167.64,21.88814734]
[1729632126685,11.53631848,167.68,167.63,21.88814734]
[1729632127008,4.43704557,167.67,167.63,21.88814734]
[1729632127214,15.6335,167.71,167.63,21.88814734]
[1729632127504,11.53759822,167.7,167.63,21.88814734]
[1729632127692,11.53759822,167.69,167.63,21.88814734]
[1729632127894,11.53759822,167.68,167.63,21.88814734]
[1729632128093,4.43753778,167.67,167.63,21.88814734]
[1729632128305,4.43753778,167.66,167.63,21.88814734]
[1729632128511,15.6335,167.71,167.63,21.88814734]
[1729632128806,11.53751783,167.7,167.63,21.88814734]
[1729632129005,11.53751783,167.69,167.63,21.88814734]
[1729632129199,11.53751783,167.68,167.63,21.88814734]
[1729632129402,4.43750686,167.67,167.63,21.88814734]
[1729632129602,15.6335,167.71,167.63,21.88814734]
[1729632129790,11.53740289,167.7,167.63,21.88814734]
[1729632129984,11.53740289,167.69,167.63,21.88814734]
[1729632130212,11.53740289,167.68,167.63,21.88814734]
[1729632130421,4.43746265,167.67,167.63,21.88814734]
[1729632130587,15.6335,167.71,167.63,21.88814734]
[1729632130900,25.9624,167.72,167.62,23.776884]
[1729632130901,11.53744913,167.7,167.65,21.88814734]
[1729632131094,11.53777388,167.69,167.65,21.88814734]
[1729632131299,4.43760534,167.68,167.65,21.88814734]
[1729632131611,4.4375146,167.67,167.65,21.88814734]
[1729632131789,20.0,167.72,167.65,21.88814734]
[1729632131989,11.53675992,167.71,167.65,21.88814734]
[1729632132298,11.53675992,167.7,167.65,21.88814734]
[1729632132611,11.53675992,167.69,167.66,21.88814734]
[1729632132810,4.43721535,167.68,167.66,21.88814734]
[1729632133110,4.43721535,167.67,167.66,21.88814734]
[1729632133610,15.9588,167.73,167.66,21.88814734]
[1729632133794,11.53641967,167.72,167.66,21.88814734]
[1729632133994,11.53641967,167.71,167.66,21.88814734]
[1729632134196,11.53641967,167.7,167.66,21.88814734]
[1729632134396,11.53641967,167.69,167.66,21.88814734]
[1729632134600,4.43708158,167.68,167.66,21.88814734]
[1729632134791,4.43708158,167.67,167.66,21.88814734]
[1729632134987,15.9588,167.73,167.66,21.88814734]
[1729632134988,11.53641751,167.72,167.66,21.88814734]
[1729632135204,4.43708158,167.67,167.66,21.88814734]
[1729632135509,11.53664328,167.7,167.66,21.88814734]
[1729632135695,11.53662135,167.69,167.62,23.776884]
[1729632135895,4.43708158,167.68,167.65,21.88814734]
[1729632136101,4.43708158,167.67,167.65,21.88814734]
[1729632136414,15.9588,167.73,167.65,21.88814734]
[1729632136614,11.53672289,167.72,167.65,21.88814734]
[1729632136813,11.53672289,167.71,167.65,21.88814734]
[1729632137113,15.9588,167.73,167.65,21.88814734]
[1729632137114,11.53672289,167.7,167.65,21.88814734]
[1729632137293,11.53672289,167.69,167.65,21.88814734]
[1729632137497,4.43720111,167.68,167.65,21.88814734]
[1729632137691,4.43720111,167.67,167.65,21.88814734]
[1729632137888,15.9588,167.73,167.65,21.88814734]
[1729632138118,11.54422158,167.72,167.65,21.88814734]
[1729632138301,11.54422158,167.71,167.65,21.88814734]
[1729632138500,11.54422158,167.7,167.65,21.88814734]
[1729632138716,4.44020409,167.69,167.65,21.88814734]
[1729632138897,4.44020409,167.68,167.65,21.88814734]
[1729632139101,4.44020409,167.67,167.65,21.88814734]
[1729632139298,15.9588,167.73,167.65,21.88814734]
[1729632139514,11.54524531,167.72,167.65,21.88814734]
[1729632139725,11.54524531,167.71,167.65,21.88814734]
[1729632140022,11.54524531,167.7,167.65,21.88814734]
[1729632140215,11.54524531,167.69,167.65,21.88814734]
[1729632140415,11.54524531,167.68,167.65,21.88814734]
[1729632140622,4.44047896,167.67,167.65,21.88814734]
[1729632140815,15.9588,167.73,167.65,21.88814734]
[1729632140993,11.54574821,167.72,167.65,21.88814734]
[1729632141195,11.54574821,167.71,167.65,21.88814734]
[1729632141390,11.54574821,167.7,167.65,21.88814734]
[1729632141596,11.54574821,167.69,167.65,21.88814734]
[1729632141811,11.54574821,167.68,167.65,21.88814734]
[1729632142012,4.44067239,167.67,167.65,21.88814734]
[1729632142210,15.9588,167.73,167.65,21.88814734]
[1729632142408,11.54698137,167.72,167.65,21.88814734]
[1729632142618,11.54698137,167.71,167.65,21.88814734]
[1729632142800,11.54698137,167.7,167.66,21.88814734]
[1729632143008,11.54698137,167.69,167.66,21.88814734]
[1729632143293,11.54698137,167.68,167.66,21.88814734]
[1729632143493,15.9588,167.73,167.67,21.88814734]
[1729632143714,11.54787485,167.72,167.67,21.88814734]
[1729632143901,11.54787485,167.71,167.67,21.88814734]
[1729632144107,11.54787485,167.7,167.67,21.88814734]
[1729632144309,11.54787485,167.69,167.67,21.88814734]
[1729632144497,11.54787485,167.68,167.67,21.88814734]
[1729632144899,4.44149033,167.68,167.66,21.88814734]
[1729632145107,4.44149033,167.67,167.66,21.88814734]
[1729632146019,4.44335505,167.67,167.66,21.88814734]
[1729632146724,15.9588,167.73,167.66,21.88814734]
[1729632146927,11.55248773,167.72,167.67,21.88814734]
[1729632147221,11.55248773,167.71,167.67,21.88814734]
[1729632147420,11.55248773,167.7,167.67,21.88814734]
[1729632147627,11.55248773,167.69,167.67,21.88814734]
[1729632147800,4.44326451,167.68,167.67,21.88814734]
[1729632148000,4.44326451,167.72,167.67,21.88814734]
[1729632148218,11.55252322,167.71,167.67,21.88814734]
[1729632148418,11.55252322,167.7,167.66,21.88814734]
[1729632148620,11.55252322,167.69,167.66,21.88814734]
[1729632148801,15.9588,167.73,167.66,21.88814734]
[1729632148802,4.44326451,167.68,167.66,21.88814734]
[1729632149121,15.9588,167.73,167.66,21.88814734]
[1729632149426,11.55265021,167.72,167.66,21.88814734]
[1729632149729,11.55265021,167.71,167.66,21.88814734]
[1729632149927,11.55265021,167.7,167.66,21.88814734]
[1729632150114,4.443327,167.69,167.66,21.88814734]
[1729632150426,4.443327,167.68,167.66,21.88814734]
[1729632150725,15.9588,167.73,167.66,21.88814734]
[1729632150926,11.55454483,167.72,167.66,21.88814734]
[1729632151225,11.55454483,167.71,167.66,21.88814734]
[1729632151419,11.55454483,167.7,167.66,21.88814734]
[1729632151603,4.4440557,167.69,167.66,21.88814734]
[1729632151804,15.9588,167.73,167.66,21.88814734]
[1729632152022,11.55448307,167.72,167.66,21.88814734]
[1729632152324,11.55448307,167.71,167.66,21.88814734]
[1729632152524,11.55448307,167.7,167.66,21.88814734]
[1729632152726,4.44403195,167.69,167.66,21.88814734]
[1729632152914,15.9588,167.73,167.66,21.88814734]
[1729632153108,11.55980535,167.72,167.66,21.88814734]
[1729632153302,15.9588,167.73,167.66,21.88814734]
[1729632153716,7.11455213,167.71,167.66,21.88814734]
[1729632153918,11.56114721,167.7,167.66,21.88814734]
[1729632154107,4.44659508,167.69,167.66,21.88814734]
[1729632154312,4.44659508,167.68,167.66,21.88814734]
[1729632154518,15.9588,167.73,167.66,21.88814734]
[1729632154710,11.56025451,167.72,167.66,21.88814734]
[1729632154904,11.56025451,167.71,167.66,21.88814734]
[1729632155107,11.56025451,167.7,167.66,21.88814734]
[1729632155309,4.44625173,167.69,167.66,21.88814734]
[1729632155527,4.44625173,167.68,167.66,21.88814734]
[1729632155818,15.9588,167.73,167.66,21.88814734]
[1729632156027,11.5593258,167.72,167.66,21.88814734]
[1729632156232,11.5593258,167.71,167.66,21.88814734]
[1729632156521,11.5593258,167.7,167.66,21.88814734]
[1729632156830,4.44589454,167.69,167.66,21.88814734]
[1729632157124,4.44589454,167.68,167.66,21.88814734]
[1729632157346,15.9588,167.73,167.66,21.88814734]
[1729632157531,7.11273234,167.72,167.66,21.88814734]
[1729632157825,11.55819005,167.71,167.66,21.88814734]
[1729632158023,11.55819005,167.7,167.66,21.88814734]
[1729632158211,4.44545771,167.69,167.66,21.88814734]
[1729632158414,15.9588,167.73,167.66,21.88814734]
[1729632158615,11.55780002,167.72,167.66,21.88814734]
[1729632158819,11.55780002,167.71,167.66,21.88814734]
[1729632159127,11.55780002,167.7,167.66,21.88814734]
[1729632159320,4.4453077,167.69,167.66,21.88814734]
[1729632159627,4.4453077,167.68,167.66,21.88814734]
[1729632159842,15.9588,167.73,167.66,21.88814734]
[1729632160126,11.55735507,167.72,167.66,21.88814734]
[1729632160333,11.55735507,167.71,167.66,21.88814734]
[1729632160510,11.55735507,167.7,167.66,21.88814734]
[1729632160708,4.44513656,167.69,167.66,21.88814734]
[1729632160909,15.9588,167.73,167.66,21.88814734]
[1729632161107,11.55707177,167.72,167.66,21.88814734]
[1729632161325,11.55707177,167.71,167.66,21.88814734]
[1729632161526,11.55707177,167.7,167.66,21.88814734]
[1729632161830,4.4450276,167.69,167.66,21.88814734]
[1729632162037,15.9588,167.73,167.66,21.88814734]
[1729632162220,11.55694503,167.72,167.66,21.88814734]
[1729632162423,11.55694503,167.71,167.66,21.88814734]
[1729632162618,11.55694503,167.7,167.66,21.88814734]
[1729632162817,4.44497886,167.69,167.66,21.88814734]
[1729632163019,15.9588,167.73,167.66,21.88814734]
[1729632163221,11.55657362,167.72,167.66,21.88814734]
[1729632163431,11.55657362,167.71,167.66,21.88814734]
[1729632163632,11.55657362,167.7,167.66,21.88814734]
[1729632163835,4.44483601,167.69,167.66,21.88814734]
[1729632164035,15.9588,167.73,167.66,21.88814734]
[1729632164237,11.55634823,167.72,167.66,21.88814734]
[1729632164539,11.55610711,167.71,167.66,21.88814734]
[1729632164720,4.44465658,167.7,167.66,21.88814734]
[1729632164920,4.44465658,167.69,167.66,21.88814734]
[1729632165126,4.44458567,167.68,167.66,21.88814734]
[1729632165440,15.9588,167.73,167.66,21.88814734]
[1729632165635,11.55611247,167.72,167.66,21.88814734]
[1729632165814,11.55611247,167.71,167.66,21.88814734]
[1729632166017,11.55611247,167.7,167.66,21.88814734]
[1729632166238,4.44465864,167.69,167.66,21.88814734]
[1729632166437,15.9588,167.73,167.66,21.88814734]
[1729632166739,11.55659843,167.72,167.66,21.88814734]
[1729632166924,11.55659843,167.71,167.66,21.88814734]
[1729632167129,4.44484555,167.7,167.66,21.88814734]
[1729632167345,15.9588,167.73,167.66,21.88814734]
[1729632167533,11.55574426,167.72,167.66,21.88814734]
[1729632167837,11.55574426,167.71,167.66,21.88814734]
[1729632168038,4.44451557,167.7,167.66,21.88814734]
[1729632168227,4.44451557,167.69,167.66,21.88814734]
[1729632168427,15.9588,167.73,167.66,21.88814734]
[1729632168620,11.55459875,167.72,167.66,21.88814734]
[1729632168823,11.55459875,167.71,167.66,21.88814734]
[1729632169038,4.44407644,167.7,167.66,21.88814734]
[1729632169246,15.9588,167.73,167.66,21.88814734]
[1729632169542,11.55403478,167.72,167.66,21.88814734]
[1729632169754,11.55403478,167.71,167.66,21.88814734]
[1729632169916,4.44385953,167.7,167.66,21.88814734]
[1729632170118,15.9588,167.73,167.66,21.88814734]
[1729632170314,11.55411806,167.72,167.66,21.88814734]
[1729632170515,11.55411806,167.71,167.66,21.88814734]
[1729632170720,4.44389156,167.7,167.66,21.88814734]
[1729632170933,15.9588,167.73,167.66,21.88814734]
[1729632171141,11.55362975,167.72,167.66,21.88814734]
[1729632171337,11.55362975,167.71,167.66,21.88814734]
[1729632171652,4.44370375,167.7,167.66,21.88814734]